fUSD/lending_fUSD_20250724
["ID","MTS","AMOUNT","RATE_DAILY","PERIOD"]
[374594629,1753367446775,-151.0,0.00034812,2]
[374594631,1753367446787,-151.0,0.00034812,2]
[374594633,1753367446799,-151.0,0.00034825,7]
[374594635,1753367446810,-285.24,0.00034825,7]
[374594637,1753367446822,-151.733305,0.00034825,7]
[374594639,1753367446834,-151.0,0.00034825,7]
[374594641,1753367446846,-151.0,0.00034825,7]
[374594642,1753367446857,-1000.0,0.00034825,2]
[374594643,1753367446867,-1000.0,0.00034825,2]
[374594644,1753367446893,-1000.0,0.00034825,2]
[374594646,1753367446905,-1000.0,0.00034825,2]
[374594647,1753367446916,-1000.0,0.00034825,2]
[374594650,1753367446930,-1000.0,0.00034825,2]
[374594652,1753367446941,-1000.0,0.00034825,2]
[374594654,1753367446952,-1000.0,0.00034825,2]
[374594656,1753367446963,-1000.0,0.00034825,2]
[374594657,1753367446973,-1000.0,0.00034825,2]
[374594659,1753367446984,-1000.0,0.00034825,2]
[374594660,1753367446994,-1000.0,0.00034825,2]
[374594661,1753367447004,-1000.0,0.00034825,2]
[374594662,1753367447015,-1000.0,0.00034825,2]
[374594663,1753367447025,-1000.0,0.00034825,2]
[374594664,1753367447036,-1000.0,0.00034825,2]
[374594665,1753367447046,-1000.0,0.00034825,2]
[374594666,1753367447056,-1000.0,0.00034825,2]
[374594667,1753367447066,-1000.0,0.00034825,2]
[374594668,1753367447076,-1000.0,0.00034825,2]
[374594669,1753367447087,-1000.0,0.00034825,2]
[374594670,1753367447098,-221.7483,0.00034825,2]
[374594671,1753367447108,-1000.0,0.00034825,2]
[374594672,1753367447124,-1000.0,0.00034825,2]
[374594673,1753367447135,-1000.0,0.00034825,2]
[374594674,1753367447144,-1000.0,0.00034825,2]
[374594675,1753367447154,-1000.0,0.00034825,2]
[374594676,1753367447164,-1000.0,0.00034825,2]
[374594677,1753367447174,-1000.0,0.00034825,2]
[374594678,1753367447184,-1000.0,0.00034825,2]
[374594679,1753367447194,-1000.0,0.00034825,2]
[374594680,1753367447204,-1000.0,0.00034825,2]
[374594681,1753367447214,-1000.0,0.00034825,2]
[374594682,1753367447225,-1000.0,0.00034825,2]
[374594683,1753367447235,-1000.0,0.00034825,2]
[374594684,1753367447245,-1000.0,0.00034825,2]
[374594685,1753367447254,-1000.0,0.00034825,2]
[374594686,1753367447264,-1000.0,0.00034825,2]
[374594687,1753367447274,-1000.0,0.00034825,2]
[374594688,1753367447284,-1000.0,0.00034825,2]
[374594689,1753367447294,-1000.0,0.00034825,2]
[374594690,1753367447304,-1000.0,0.00034825,2]
[374594691,1753367447314,-1000.0,0.00034825,2]
[374594692,1753367447324,-1000.0,0.00034825,2]
[374594693,1753367447334,-1000.0,0.00034825,2]
[374594694,1753367447344,-1000.0,0.00034825,2]
[374594695,1753367447353,-1000.0,0.00034825,2]
[374594696,1753367447363,-1000.0,0.00034825,2]
[374594697,1753367447380,-1000.0,0.00034825,2]
[374594698,1753367447390,-1000.0,0.00034825,2]
[374594699,1753367447399,-1000.0,0.00034825,2]
[374594700,1753367447409,-1000.0,0.00034825,2]
[374594701,1753367447419,-1000.0,0.00034825,2]
[374594702,1753367447428,-1000.0,0.00034825,2]
[374594703,1753367447438,-1000.0,0.00034825,2]
[374594704,1753367447447,-1000.0,0.00034825,2]
[374594705,1753367447458,-1000.0,0.00034825,2]
[374594706,1753367447468,-1000.0,0.00034825,2]
[374594707,1753367447478,-1000.0,0.00034825,2]
[374594708,1753367447488,-1000.0,0.00034825,2]
[374594709,1753367447498,-1000.0,0.00034825,2]
[374594710,1753367447510,-1000.0,0.00034825,2]
[374594711,1753367447520,-1000.0,0.00034825,2]
[374594712,1753367447530,-1000.0,0.00034825,2]
[374594713,1753367447539,-1000.0,0.00034825,2]
[374594714,1753367447550,-1000.0,0.00034825,2]
[374594715,1753367447560,-1000.0,0.00034825,2]
[374594716,1753367447570,-1000.0,0.00034825,2]
[374594717,1753367447579,-1000.0,0.00034825,2]
[374594718,1753367447590,-1000.0,0.00034825,2]
[374594719,1753367447600,-1000.0,0.00034825,2]
[374594720,1753367447609,-1000.0,0.00034825,2]
[374594721,1753367447622,-1000.0,0.00034825,2]
[374594722,1753367447632,-1000.0,0.00034825,2]
[374594723,1753367447642,-1000.0,0.00034825,2]
[374594724,1753367447651,-1000.0,0.00034825,2]
[374594725,1753367447662,-1000.0,0.00034825,2]
[374594726,1753367447671,-1000.0,0.00034825,2]
[374594727,1753367447681,-1000.0,0.00034825,2]
[374594728,1753367447691,-1000.0,0.00034825,2]
[374594729,1753367447702,-1000.0,0.00034825,2]
[374594730,1753367447712,-1000.0,0.00034825,2]
[374594731,1753367447722,-1000.0,0.00034825,2]
[374594732,1753367447732,-1000.0,0.00034825,2]
[374594733,1753367447741,-1000.0,0.00034825,2]
[374594734,1753367447751,-1000.0,0.00034825,2]
[374594735,1753367447760,-1000.0,0.00034825,2]
[374594736,1753367447770,-1000.0,0.00034825,2]
[374594737,1753367447780,-1000.0,0.00034825,2]
[374594738,1753367447790,-1000.0,0.00034825,2]
[374594739,1753367447799,-1000.0,0.00034825,2]
[374594740,1753367447810,-1000.0,0.00034825,2]
[374594741,1753367447819,-1000.0,0.00034825,2]
[374594742,1753367447832,-1000.0,0.00034825,2]
[374594743,1753367447842,-1000.0,0.00034825,2]
[374594744,1753367447851,-1000.0,0.00034825,2]
[374594745,1753367447864,-1000.0,0.00034825,2]
[374594746,1753367447878,-1000.0,0.00034825,2]
[374594747,1753367447888,-1000.0,0.00034825,2]
[374594748,1753367447898,-1000.0,0.00034825,2]
[374594749,1753367447907,-1000.0,0.00034825,2]
[374594750,1753367447917,-1000.0,0.00034825,2]
[374594751,1753367447926,-861.6011,0.00034825,2]
[374594752,1753367447936,-255.28098652,0.00034843,30]
[374594753,1753367447945,-193.34989762,0.00034843,30]
[374594754,1753367447955,-316.65059519,0.00034843,30]
[374594755,1753367447964,-7000.0,0.0003486,2]
[374594756,1753367447974,-242.77957875,0.00034888,2]
[374594757,1753367447984,-7899.31456608,0.00034895,2]
[374594758,1753367447994,-74466.46128223,0.000349,2]
[374594759,1753367448004,-1147.60447699,0.000349,2]
[374594760,1753367448015,-1508.34,0.00034931,30]
[374594761,1753367448025,-1508.34,0.00034931,30]
[374594762,1753367448035,-500.0,0.00034973,5]
[374594763,1753367448045,-480.0,0.00034978,120]
[374594764,1753367448056,-500.0,0.00034978,2]
[374594765,1753367448066,-500.0,0.00034978,2]
[374594766,1753367448077,-480.0,0.0003498,2]
[374594767,1753367448087,-400.0,0.0003498,2]
[374594768,1753367448097,-400.0,0.0003498,2]
[374594769,1753367448107,-400.0,0.0003498,2]
[374594770,1753367448117,-400.0,0.0003498,2]
[374594784,1753367448428,-500.07,0.0003498,2]
[374594786,1753367448439,-400.0,0.0003498,120]
[374594788,1753367448450,-500.0,0.0003498,120]
[374594790,1753367448460,-500.0,0.0003498,2]
[374594791,1753367448470,-500.0,0.0003498,2]
[374594792,1753367448480,-800.0,0.00034986,120]
[374594793,1753367448491,-400.0,0.00034989,120]
[374594794,1753367448501,-500.0,0.00034989,120]
[374594795,1753367448516,-400.0,0.00034989,120]
[374594796,1753367448528,-151.0,0.0003499,7]
[374594797,1753367448539,-246.380443,0.0003499,7]
[374594798,1753367448549,-151.0,0.0003499,7]
[374594799,1753367448559,-151.0,0.0003499,7]
[374594800,1753367448569,-193.616422,0.0003499,7]
[374594802,1753367448581,-151.0,0.0003499,7]
[374594804,1753367448590,-2128.9400196,0.0003499,2]
[374594806,1753367448600,-151.0,0.0003499,7]
[374594808,1753367448610,-176.219985,0.0003499,7]
[374594810,1753367448621,-151.0,0.0003499,7]
[374594812,1753367448631,-151.0,0.0003499,7]
[374594814,1753367448641,-190.627892,0.0003499,7]
[374594816,1753367448650,-151.0,0.0003499,7]
[374594818,1753367448660,-76262.8158718,0.0003499,2]
[374594820,1753367448670,-151.0,0.0003499,7]
[374594822,1753367448680,-199.646132,0.0003499,7]
[374594824,1753367448690,-199.646132,0.0003499,7]
[374594826,1753367448701,-18895.2125005,0.0003499,2]
[374594828,1753367448711,-151.0,0.0003499,7]
[374594830,1753367448721,-743.393678,0.0003499,7]
[374594832,1753367448732,-743.393678,0.0003499,7]
[374594835,1753367448742,-151.0,0.0003499,7]
[374594837,1753367448752,-151.0,0.0003499,7]
[374594839,1753367448764,-151.0,0.0003499,7]
[374594841,1753367448774,-207.767448,0.0003499,7]
[374594843,1753367448784,-207.767448,0.0003499,7]
[374594845,1753367448794,-150.0,0.00034999,2]
[374594847,1753367448803,-500.0,0.00034999,2]
[374594849,1753367448813,-275.91161716,0.00034999,2]
[374594851,1753367448823,-605.1,0.00035,11]
[374594853,1753367448833,-45791.65,0.00035,11]
[374594855,1753367448843,-478672.61739503,0.00035,5]
[374594874,1753367450215,-547.49120099,0.0002483,2]
[374594875,1753367451150,-3904.25000114,0.0002,2]
[374594876,1753367451163,-23649.5004553,0.0002,2]
[374594877,1753367451552,-593.096412,0.0002,2]
[374594878,1753367451618,-2092.11344936,0.0002,2]
[374594879,1753367603087,-400.0,0.000197,7]
[374594880,1753367603117,-800.0,0.000198,7]
[374594881,1753367603147,-1200.0,0.000199,7]
[374594882,1753367750346,-2906.65871841,0.000209,4]
[374594883,1753367795069,2809.77009432,0.00021934,6]
[374594884,1753367820438,-2809.77009432,0.00022969,8]
[374594885,1753367883360,-2809.77009432,0.00022452,7]
[374594886,1753367940213,-2809.77009432,0.00021417,5]
[374594887,1753367950608,2445.89903061,0.00021417,5]
[374594888,1753367950701,2445.89903061,0.00021934,6]
[374594889,1753367950832,2445.89903061,0.00022452,7]
[374594890,1753367950929,2445.89903061,0.00022969,8]
[374594891,1753367986348,195.58661697,0.00027285,120]
[374594892,1753368004794,166.24862443,0.00027285,120]
[374594894,1753368055284,167.80169739,0.00027285,120]
[374594895,1753368100119,2119.77915986,0.00021417,5]
[374594896,1753368100185,2119.77915986,0.00021934,6]
[374594897,1753368100227,2119.77915986,0.00022452,7]
[374594898,1753368100288,2119.77915986,0.00022969,8]
[374594899,1753368127244,-2119.77915986,0.00023486,9]
[374594900,1753368148302,-2119.77916015,0.000209,4]
[374594902,1753368209044,163.36,0.00013699,2]
[374594910,1753368351522,-2092.30963253,0.000209,4]
[374594911,1753368389570,1089.22,0.00027303,120]
[374594912,1753368409865,-2092.30963246,0.00021934,6]
[374594953,1753368444218,1952.82232362,0.00021383,5]
[374594954,1753368444269,1952.82232362,0.00021866,6]
[374594967,1753368480721,-1952.8223239,0.000209,4]
[374594968,1753368492633,-1952.82232362,0.00022831,8]
[374594969,1753368502331,-1952.82232362,0.00022348,7]
[374594971,1753368517864,-1952.82232362,0.00023314,9]
[374594972,1753368517904,-1952.82232362,0.00023797,9]
[374594983,1753368632369,-2232.5255782,0.00019899,2]
[374594984,1753368632381,-2037.28015783,0.00019899,2]
[374594985,1753368632391,-300.0,0.00019936,2]
[374594986,1753368632402,-300.0,0.00020445,2]
[374594987,1753368632412,-158.0,0.00020779,2]
[374594988,1753368632422,-300.0,0.00020779,2]
[374594989,1753368632431,-151.0,0.00020779,2]
[374594990,1753368632441,-1200.0,0.00020779,2]
[374594991,1753368632451,-5515.4,0.00020793,2]
[374594992,1753368632460,-504.22,0.00021317,2]
[374594993,1753368632470,-500.0,0.00021734,2]
[374594994,1753368632479,-500.0,0.00021734,2]
[374594995,1753368632489,-500.0,0.00021734,2]
[374594996,1753368632498,-604.41038766,0.00021734,2]
[374594997,1753368632509,-12597.56090635,0.00021747,2]
[374594998,1753368632520,-300.0,0.00021889,2]
[374594999,1753368632529,-1497.1637815,0.000219,6]
[374595000,1753368632539,-184.0,0.00022,2]
[374595001,1753368632550,-1497.16378144,0.00022348,7]
[374595002,1753368632560,-1680.0,0.00022716,2]
[374595003,1753368632570,-1497.16378144,0.00022797,7]
[374595004,1753368632580,-600.0,0.00022912,2]
[374595005,1753368632591,-600.0,0.00022912,2]
[374595006,1753368632600,-3103.315,0.00022969,2]
[374595008,1753368632610,-167.537,0.00022969,2]
[374595010,1753368632620,-504.22,0.00023047,2]
[374595012,1753368632630,-1010.0,0.00023111,2]
[374595014,1753368632639,-180.0,0.0002318,2]
[374595016,1753368632650,-1497.16378144,0.00023245,8]
[374595018,1753368632659,-600.0,0.00023388,2]
[374595019,1753368632669,-439.0,0.00023505,2]
[374595020,1753368632678,-1497.16378144,0.00023693,9]
[374595021,1753368632688,-1401.49,0.00023851,2]
[374595022,1753368632698,-353.51827459,0.00023855,2]
[374595023,1753368632708,-255.48890317,0.00023855,2]
[374595024,1753368632717,-1491.73051831,0.00023995,2]
[374595025,1753368632727,-1060.51,0.00024119,2]
[374595026,1753368632737,-1497.16378144,0.00024141,10]
[374595027,1753368632746,-250.0,0.00024153,2]
[374595028,1753368632756,-343.04,0.00024186,2]
[374595029,1753368632766,-169.36,0.0002419,3]
[374595030,1753368632776,-1089.22,0.0002427,2]
[374595031,1753368632786,-339.83,0.00024292,2]
[374595032,1753368632796,-176.0,0.0002437,2]
[374595033,1753368632806,-321.98,0.00024519,2]
[374595034,1753368632816,-321.98,0.00024532,2]
[374595035,1753368632826,-321.98,0.00024545,2]
[374595036,1753368632836,-321.98,0.00024558,2]
[374595037,1753368632846,-321.98,0.00024571,2]
[374595038,1753368632856,-321.98,0.00024584,2]
[374595039,1753368632867,-1497.16378144,0.0002459,11]
[374595041,1753368632879,-321.98,0.00024596,2]
[374595043,1753368632889,-321.98,0.00024609,2]
[374595045,1753368632899,-5000.0,0.0002461,2]
[374595047,1753368632908,-321.98,0.00024622,2]
[374595049,1753368632919,-153.0,0.00024634,2]
[374595050,1753368632928,-153.0,0.00024634,2]
[374595051,1753368632938,-153.0,0.00024634,2]
[374595052,1753368632948,-153.0,0.00024634,2]
[374595053,1753368632958,-153.0,0.00024634,2]
[374595054,1753368632968,-321.98,0.00024635,2]
[374595055,1753368632978,-321.98,0.00024648,2]
[374595056,1753368632987,-2441.43391524,0.00024653,2]
[374595057,1753368632997,-321.98,0.00024661,2]
[374595058,1753368633007,-321.98,0.00024674,2]
[374595059,1753368633017,-321.98,0.00024687,2]
[374595060,1753368633028,-321.98,0.000247,2]
[374595061,1753368633038,-321.98,0.00024713,2]
[374595062,1753368633048,-321.98,0.00024726,2]
[374595063,1753368633058,-321.98,0.00024738,2]
[374595064,1753368633073,-321.98,0.00024751,2]
[374595065,1753368633084,-321.98,0.00024764,2]
[374595066,1753368633094,-504.22,0.00024778,2]
[374595067,1753368633104,-500.69503255,0.00024817,2]
[374595068,1753368633114,-500.0,0.00024817,2]
[374595069,1753368633124,-574.94363024,0.00024817,2]
[374595070,1753368633134,-2351.0,0.00024833,2]
[374595071,1753368633144,-1577.78,0.00024861,2]
[374595072,1753368633155,-500.0,0.00024891,2]
[374595073,1753368633165,-166.04404493,0.00024891,2]
[374595074,1753368633176,-500.0,0.00024891,2]
[374595075,1753368633187,-500.0,0.00024891,2]
[374595076,1753368633197,-500.0,0.00024891,2]
[374595077,1753368633207,-1497.16378144,0.00025038,12]
[374595078,1753368633218,-389.78,0.00025067,2]
[374595079,1753368633228,-2272.64580149,0.00025073,2]
[374595080,1753368633238,-343.04,0.00025093,2]
[374595081,1753368633249,-1000.0,0.00025365,2]
[374595082,1753368633259,-972.73338172,0.00025384,2]
[374595083,1753368633270,-1000.0,0.00025439,2]
[374595084,1753368633279,-502.0451829,0.00025467,2]
[374595085,1753368633289,-500.0,0.00025467,2]
[374595086,1753368633300,-155.32,0.00025484,2]
[374595087,1753368633310,-1497.16378144,0.00025486,13]
[374595088,1753368633320,-211.01152796,0.00025501,2]
[374595089,1753368633330,-160.0,0.00025504,2]
[374595090,1753368633340,-839.91269601,0.00025504,2]
[374595091,1753368633351,-339.83,0.00025506,2]
[374595092,1753368633362,-477.18900901,0.00025511,2]
[374595093,1753368633373,-173.0,0.0002555,2]
[374595094,1753368633384,-2741.52,0.00025604,2]
[374595095,1753368633395,-630.08245246,0.00025675,2]
[374595096,1753368633406,-509.20696183,0.00025675,2]
[374595097,1753368633416,-595.93972127,0.00025675,2]
[374595098,1753368633426,-500.0,0.00025675,2]
[374595099,1753368633437,-276.35300429,0.00025726,2]
[374595100,1753368633447,-500.0,0.0002573,2]
[374595101,1753368633457,-500.0,0.0002573,2]
[374595102,1753368633467,-1500.0,0.00025913,2]
[374595103,1753368633478,-166.93,0.00025924,2]
[374595104,1753368633489,-1497.16378144,0.00025934,14]
[374595105,1753368633499,-185.9763751,0.00025987,2]
[374595106,1753368633510,-343.04,0.00026,2]
[374595107,1753368633522,-500.0,0.00026015,2]
[374595108,1753368633533,-3671.2203,0.00026023,2]
[374595109,1753368633544,-628.32,0.000261,2]
[374595110,1753368633560,-812.57,0.000261,2]
[374595111,1753368633571,-203.14,0.000261,2]
[374595112,1753368633582,-363.63,0.000261,2]
[374595113,1753368633593,-1281.0,0.00026123,2]
[374595114,1753368633605,-500.0,0.00026127,2]
[374595115,1753368633616,-180.0,0.00026134,7]
[374595116,1753368633627,-1000.0,0.00026134,2]
[374595117,1753368633638,-279.6718873,0.00026243,2]
[374595118,1753368633649,-500.0,0.00026243,2]
[374595119,1753368633659,-383.0,0.00026253,2]
[374595120,1753368633669,-1000.0,0.00026278,2]
[374595121,1753368633679,-5010.47185673,0.00026337,2]
[374595122,1753368633689,-1497.16378144,0.00026383,15]
[374595123,1753368633699,-654.0,0.00026383,2]
[374595124,1753368633708,-285.7098,0.00026435,2]
[374595125,1753368633718,-2091.99431193,0.00026461,2]
[374595126,1753368633728,-504.22,0.00026508,2]
[374595127,1753368633738,-23900.0,0.00026534,2]
[374595128,1753368633748,-628.32,0.000267,2]
[374595129,1753368633758,-812.57,0.000267,2]
[374595130,1753368633768,-203.14,0.000267,2]
[374595131,1753368633778,-363.63,0.000267,2]
[374595132,1753368633788,-3045.11161068,0.000267,2]
[374595133,1753368633800,-339.83,0.00026721,2]
[374595134,1753368633810,-177.53000774,0.00026726,2]
[374595135,1753368633820,-5772.04510245,0.00026726,2]
[374595136,1753368633830,-169.0,0.0002673,2]
[374595137,1753368633840,-3000.0,0.0002678,2]
[374595138,1753368633850,-3000.0,0.0002678,2]
[374595139,1753368633860,-1900.0,0.0002678,2]
[374595140,1753368633870,-764.55967777,0.00026826,2]
[374595141,1753368633883,-1497.16378144,0.00026831,15]
[374595142,1753368633893,-165.01,0.00026862,2]
[374595143,1753368633903,-343.04,0.00026907,2]
[374595144,1753368633914,-343.29547864,0.0002694,2]
[374595145,1753368633928,-14670.13,0.00026943,7]
[374595146,1753368633938,-27949.19816691,0.00026952,2]
[374595147,1753368633954,-2528.33741066,0.00026953,2]
[374595148,1753368633974,-343.29547864,0.00026954,2]
[374595149,1753368633995,-2528.33741066,0.00026955,2]
[374595150,1753368634016,-27949.19816691,0.00026955,2]
[374595151,1753368634037,-8623.92015381,0.00026958,2]
[374595152,1753368634538,-473.4399723,0.0002696,2]
[374595153,1753368634548,-200.0,0.00026968,2]
[374595154,1753368634561,-8623.92015381,0.00026978,2]
[374595155,1753368634571,-473.4399723,0.00026985,2]
[374595156,1753368634581,-398.78022916,0.00026989,2]
[374595157,1753368634591,-343.29547864,0.0002699,2]
[374595158,1753368634600,-27949.19816691,0.00026996,2]
[374595159,1753368634610,-2528.33741066,0.00026998,2]
[374595160,1753368634620,-826.56,0.00027,2]
[374595161,1753368634631,-606.7078137,0.00027002,2]
[374595162,1753368634641,-8623.92015381,0.00027006,2]
[374595163,1753368634651,-398.78022916,0.00027009,2]
[374595164,1753368634661,-606.7078137,0.00027011,2]
[374595165,1753368634671,-207.91735201,0.00027018,2]
[374595166,1753368634681,-207.91735201,0.00027023,2]
[374595167,1753368634691,-207.91735201,0.00027027,2]
[374595168,1753368634702,-388.50951697,0.00027027,2]
[374595169,1753368634712,-388.50951697,0.00027034,2]
[374595170,1753368634722,-398.78022916,0.00027035,2]
[374595171,1753368634733,-473.4399723,0.00027036,2]
[374595172,1753368634743,-473.4399723,0.00027037,2]
[374595173,1753368634753,-606.7078137,0.0002704,2]
[374595174,1753368634763,-388.50951697,0.00027054,2]
[374595175,1753368634774,-2528.33741066,0.00027059,2]
[374595176,1753368634784,-200.0,0.00027063,2]
[374595177,1753368634794,-606.7078137,0.00027073,2]
[374595178,1753368634806,-8623.92015381,0.00027078,2]
[374595179,1753368634816,-388.50951697,0.00027079,2]
[374595180,1753368634826,-343.29547864,0.00027088,2]
[374595181,1753368634836,-200.0,0.00027093,2]
[374595182,1753368634846,-207.91735201,0.00027094,2]
[374595183,1753368634856,-398.78022916,0.00027097,2]
[374595184,1753368634866,-27949.19816691,0.00027098,2]
[374595185,1753368634877,-290.37,0.00027123,14]
[374595186,1753368634891,-1105.0,0.00027147,2]
[374595187,1753368634900,-210.8,0.000272,2]
[374595188,1753368634910,-1497.16378144,0.00027279,16]
[374595189,1753368634921,-433.21,0.00027344,2]
[374595190,1753368634931,-300.0,0.00027397,2]
[374595191,1753368634942,-150.0,0.00027397,2]
[374595192,1753368634953,-1420.94,0.00027425,30]
[374595193,1753368634965,-612.50964953,0.00027459,13]
[374595194,1753368634975,-3354.0,0.00027559,2]
[374595195,1753368634986,-953.0,0.00027559,2]
[374595196,1753368634995,-807.0,0.00027559,2]
[374595197,1753368635005,-563.0,0.00027559,2]
[374595198,1753368635016,-2018.0,0.00027559,2]
[374595199,1753368635025,-1269.0,0.00027559,2]
[374595200,1753368635035,-959.0,0.00027559,2]
[374595201,1753368635047,-1688.0,0.00027559,2]
[374595202,1753368635059,-596.771,0.00027559,2]
[374595203,1753368635068,-1289.0,0.00027559,2]
[374595204,1753368635078,-6055.0,0.00027559,2]
[374595205,1753368635088,-21379.0,0.00027559,2]
[374595206,1753368635098,-4129.0,0.00027559,2]
[374595207,1753368635109,-500.0,0.00027573,5]
[374595208,1753368635119,-500.0,0.00027573,5]
[374595209,1753368635128,-11232.46,0.00027589,2]
[374595210,1753368635138,-5772.04510236,0.00027645,2]
[374595211,1753368635147,-1497.16378144,0.00027728,17]
[374595212,1753368635158,-628.32,0.000278,2]
[374595213,1753368635168,-812.57,0.000278,2]
[374595214,1753368635178,-203.14,0.000278,2]
[374595215,1753368635188,-363.63,0.000278,2]
[374595216,1753368635197,-343.04,0.00027814,2]
[374595217,1753368635211,-3000.0,0.00027876,7]
[374595218,1753368635220,-3000.0,0.00027876,7]
[374595219,1753368635230,-1900.0,0.00027876,7]
[374595220,1753368635240,-165.0,0.0002792,3]
[374595221,1753368635250,-339.83,0.00027935,2]
[374595222,1753368635260,-3322.64068419,0.00027945,7]
[374595223,1753368635270,-155.32,0.00028032,2]
[374595224,1753368635279,-150.0,0.00028118,2]
[374595225,1753368635290,-500.0,0.00028121,5]
[374595226,1753368635301,-505.31191705,0.00028121,5]
[374595227,1753368635312,-600.0,0.00028172,2]
[374595228,1753368635321,-600.0,0.00028172,2]
[374595229,1753368635331,-1497.16378144,0.00028176,18]
[374595230,1753368635340,-504.22,0.00028238,2]
[374595231,1753368635350,-263.82310691,0.00028351,2]
[374595232,1753368635360,-5772.04510236,0.00028563,2]
[374595233,1753368635369,-1497.16378144,0.00028624,19]
[374595234,1753368635379,-3000.0,0.00028698,7]
[374595235,1753368635389,-3000.0,0.00028698,7]
[374595236,1753368635398,-1900.0,0.00028698,7]
[374595237,1753368635410,-1084.0,0.00028767,120]
[374595238,1753368635419,-150.0,0.00028839,2]
[374595239,1753368635429,-944.8,0.0002898,2]
[374595240,1753368635439,-1060.15626232,0.00028988,15]
[374595241,1753368635449,-500.0,0.0002899,120]
[374595242,1753368635459,-151.0,0.0002899,7]
[374595243,1753368635469,-500.0,0.00028999,120]
[374595244,1753368635478,-460.0,0.00028999,120]
[374595245,1753368635488,-687.31866875,0.00028999,2]
[374595246,1753368635498,-150.99,0.00029009,2]
[374595247,1753368635507,-1497.16378144,0.00029072,20]
[374595248,1753368635517,-162.0,0.000291,3]
[374595249,1753368635527,-163.36,0.0002911,2]
[374595250,1753368635538,-339.83,0.0002915,2]
[374595251,1753368635547,-5800.0,0.00029305,2]
[374595252,1753368635560,-5800.0,0.00029313,2]
[374595253,1753368635569,-1000.0,0.00029401,2]
[374595254,1753368635580,-5772.04510236,0.00029482,2]
[374595255,1753368635590,-500.0,0.0002949,120]
[374595256,1753368635599,-666.0,0.00029494,3]
[374595257,1753368635609,-3000.0,0.0002952,7]
[374595258,1753368635619,-3000.0,0.0002952,7]
[374595259,1753368635629,-1900.0,0.0002952,7]
[374595260,1753368635639,-1497.16378144,0.00029521,21]
[374595261,1753368635648,-150.0,0.0002956,2]
[374595262,1753368635658,-504.22,0.00029969,2]
[374595263,1753368635667,-1497.16378144,0.00029969,22]
[374595264,1753368635677,-168.68124017,0.00030027,30]
[374595265,1753368635687,-200.0,0.00030137,2]
[374595266,1753368635696,-228.16792825,0.00030137,2]
[374595267,1753368635706,-166.93,0.00030203,2]
[374595268,1753368635716,-151.62491516,0.00030256,2]
[374595269,1753368635725,-232.96820497,0.00030262,2]
[374595270,1753368635735,-150.0,0.00030281,2]
[374595271,1753368635748,-158.0,0.0003029,3]
[374595272,1753368635758,-1089.22,0.00030337,120]
[374595273,1753368635768,-3000.0,0.00030342,7]
[374595274,1753368635778,-3000.0,0.00030342,7]
[374595275,1753368635789,-168.68124017,0.00030356,30]
[374595276,1753368635811,-169.90836249,0.00030356,30]
[374595277,1753368635821,-5772.04510236,0.000304,2]
[374595278,1753368635832,-1497.16378144,0.00030417,22]
[374595279,1753368635841,-600.0,0.0003042,2]
[374595280,1753368635851,-600.0,0.0003042,2]
[374595281,1753368635862,-9770.77851248,0.00030459,2]
[374595282,1753368635872,-284.93,0.00030509,2]
[374595283,1753368635889,-15030.8873532,0.00030549,3]
[374595284,1753368635898,-3354.0,0.00030559,2]
[374595285,1753368635908,-953.0,0.00030559,2]
[374595286,1753368635919,-807.0,0.00030559,2]